bitfinex/quotes_ETHUSD_20220218
["timestamp","ask_amount","ask_price","bid_price","bid_amount"]
[1645145848885,0.86484,2891.6,2891.0,0.5029615]
[1645145849085,1.70276776,2891.6,2891.0,0.5029615]
[1645145849559,0.86503,2891.3,2891.0,0.0049615]
[1645145849957,1.73017,2891.2,2891.0,0.0049615]
[1645145850556,1.01205136,2891.1,2891.0,0.0049615]
[1645145851561,4.41205136,2891.1,2891.0,0.0049615]
[1645145853987,3.4,2891.1,2891.0,0.0049615]
[1645145862595,3.4,2891.1,2891.0,1.47893627]
[1645145862797,3.4,2891.1,2891.0,3.20852882]
[1645145863296,3.4,2891.1,2891.0,4.20852882]
[1645145864299,1.72981,2891.9,2891.1,6.0]
[1645145864535,2.59466,2892.5,2891.3,0.86456]
[1645145864536,0.00480093,2891.8,2891.3,0.86456]
[1645145864734,0.00480093,2892.0,2891.5,6.226]
[1645145864935,0.00480093,2892.7,2891.8,20.34]
[1645145865135,0.00480093,2892.7,2892.0,20.34]
[1645145865432,0.00480093,2892.7,2892.3,1.0714922]
[1645145865634,0.00480093,2892.7,2892.4,1.36239]
[1645145865835,0.04765593,2892.9,2892.4,1.66237]
[1645145866334,0.04765593,2892.9,2892.4,2.66237]
[1645145866736,0.04765593,2892.9,2892.4,1.66237]
[1645145867336,0.00310937,2892.8,2892.4,1.66237]
[1645145867536,0.00310937,2892.8,2892.5,1.72869]
[1645145867739,0.00310937,2892.8,2892.6,28.0596276]
[1645145867938,0.00310937,2892.8,2892.6,21.138]
[1645145868135,0.04765593,2892.9,2892.7,1.0]
[1645145868383,0.04765593,2892.9,2892.8,0.498]
[1645145868583,0.04765593,2892.9,2892.8,1.36206]
[1645145869186,0.04765593,2892.9,2892.8,22.00206]
[1645145869383,2.0,2893.1,2892.9,3.0]
[1645145869384,1.68039903,2893.1,2892.9,3.0]
[1645145869588,1.01518523,2893.1,2893.0,0.6708]
[1645145869884,1.01518523,2893.1,2893.0,1.6708]
[1645145870386,1.01518523,2893.1,2893.0,25.8108]
[1645145870585,1.01518523,2893.1,2893.0,24.638]
[1645145870785,1.01518523,2893.1,2893.0,25.638]
[1645145870986,1.01518523,2893.1,2893.0,22.138]
[1645145871186,1.01518523,2893.1,2893.0,1.798]
[1645145871387,1.01518523,2893.1,2893.0,0.798]
[1645145871592,1.01518523,2893.1,2893.0,0.498]
[1645145875259,4.41518523,2893.1,2893.0,0.498]
[1645145878787,4.71518523,2893.1,2893.0,0.498]
[1645145880729,4.71518523,2893.1,2892.7,2.59252]
[1645145880934,4.41518523,2893.1,2892.8,0.86422]
[1645145881334,4.41518523,2893.1,2892.9,0.498]
[1645145881734,4.41808603,2893.1,2892.9,0.498]
[1645145882735,4.41518523,2893.1,2892.9,0.498]
[1645145882937,2.84689698,2893.1,2892.9,0.498]
[1645145883137,2.84689698,2893.1,2893.0,0.1728]
[1645145883396,1.51403271,2893.1,2893.0,0.1728]
[1645145883601,0.01160136,2893.6,2893.2,20.34]
[1645145883894,0.0083522,2893.7,2893.4,20.34]
[1645145884096,0.0083522,2893.7,2893.5,0.498]
[1645145884295,0.0083522,2893.7,2893.5,1.798]
[1645145884497,0.0083522,2893.7,2893.5,0.798]
[1645145884701,0.0083522,2893.7,2893.5,0.498]
[1645145885296,0.00989001,2893.7,2893.5,0.498]
[1645145885596,0.00989001,2893.7,2893.6,0.85557572]
[1645145885797,0.00989001,2893.7,2893.6,1.65357572]
[1645145886199,0.0083522,2893.7,2893.6,1.65357572]
[1645145886599,3.4083522,2893.7,2893.6,1.65357572]
[1645145886800,3.41312913,2893.7,2893.6,1.65357572]
[1645145887435,2.89977781,2893.7,2893.6,25.49357572]
[1645145887638,0.01160486,2894.2,2893.9,0.86369]
[1645145887835,0.01160486,2894.2,2894.0,0.498]
[1645145888036,0.01160486,2894.2,2894.1,3.5]
[1645145888235,0.01160486,2894.2,2894.1,3.998]
[1645145888436,0.01160486,2894.2,2894.1,21.838]
[1645145888636,0.01742576,2894.9,2894.1,21.838]
[1645145888935,0.01742576,2894.9,2894.2,1.86376]
[1645145889135,0.01742576,2894.9,2894.4,0.86375]
[1645145889336,0.01742576,2894.9,2894.5,0.498]
[1645145890636,0.01742576,2894.9,2894.6,0.86373]
[1645145890896,0.01742576,2894.9,2894.6,1.31173]
[1645145892599,0.02053154,2894.9,2894.6,1.31173]
[1645145893399,0.01742576,2894.9,2894.6,1.31173]
[1645145893600,0.02053154,2894.9,2894.6,1.31173]
[1645145894533,0.01742576,2894.9,2894.6,1.31173]
[1645145894942,0.02053154,2894.9,2894.6,1.31173]
[1645145895739,0.01742576,2894.9,2894.6,1.31173]
[1645145895945,0.01742576,2894.9,2894.3,0.1726]
[1645145896144,0.01742576,2894.9,2894.0,0.1726]
[1645145896145,0.02053154,2894.9,2894.0,0.1726]
[1645145896344,0.02053154,2894.9,2893.9,0.75879997]
[1645145896546,0.02053154,2894.9,2893.8,0.7224]
[1645145896744,0.22053154,2894.9,2893.8,0.7224]
[1645145896946,0.22053154,2894.9,2893.8,1.58638]
[1645145897145,0.21742576,2894.9,2893.8,1.58638]
[1645145897347,0.00310597,2894.5,2893.8,1.58638]
[1645145897749,1.00717876,2894.3,2893.8,0.7224]
[1645145897948,0.86421,2894.2,2893.8,0.7224]
[1645145898288,0.86421,2894.2,2893.8,3.9224]
[1645145898289,0.86425,2894.2,2893.8,3.9224]
[1645145898488,1.7285,2894.2,2893.8,3.9224]
[1645145898694,1.7285,2894.2,2893.8,3.2]
[1645145898695,0.29846951,2894.1,2893.8,3.2]
[1645145899091,0.86735611,2894.2,2893.8,3.2]
[1645145899291,1.03995611,2894.2,2893.8,3.2]
[1645145899491,1.03685,2894.2,2893.8,3.2]
[1645145899690,0.00310613,2894.1,2893.8,3.2]
[1645145899897,0.86418,2894.0,2893.8,3.2]
[1645145900292,1.16418,2894.0,2893.8,3.2]
[1645145900494,0.3,2894.0,2892.8,0.1726]
[1645145900894,0.30310618,2894.0,2892.8,0.1726]
[1645145901097,0.86442,2893.7,2892.8,0.1726]
[1645145901295,0.97736804,2893.3,2892.8,0.1726]
[1645145902938,0.00475304,2893.2,2892.8,0.1726]
[1645145904342,0.00475304,2893.5,2892.8,0.1726]
[1645145904743,0.00475304,2893.5,2892.9,0.86425]
[1645145905143,0.84149672,2893.6,2892.9,0.86425]
[1645145905347,1.14149672,2893.6,2892.9,0.86425]
[1645145905544,2.00578672,2893.6,2892.6,0.86425]
[1645145905782,2.00578672,2893.6,2892.7,0.86429]
[1645145906387,1.14149672,2893.6,2892.5,1.72855]
[1645145906589,0.00475304,2893.6,2892.6,25.81120731]
[1645145906787,6.6081,2894.1,2892.9,0.86404]
[1645145906788,0.00475304,2893.9,2892.9,0.86404]
[1645145906988,0.00475304,2893.9,2893.0,1.97120731]
[1645145907187,0.00785888,2893.9,2893.0,0.498]
[1645145907388,0.00785888,2893.9,2893.1,1.72821]
[1645145907588,1.09192941,2893.8,2893.1,0.498]
[1645145907789,0.00475304,2893.7,2893.1,1.36218]
[1645145908389,0.00475304,2893.7,2893.1,4.56218]
[1645145909633,0.00475304,2893.7,2893.1,1.36218]
[1645145909839,0.00475304,2893.7,2893.2,1.47303557]
[1645145910038,0.00475304,2893.7,2893.2,2.33717557]
[1645145910237,0.00475304,2893.7,2893.2,0.86414]
[1645145911537,0.00475304,2893.7,2893.1,0.51811017]
[1645145911738,0.00475304,2893.7,2893.2,1.47305293]
[1645145912539,0.00475304,2893.7,2892.9,0.1728]
[1645145912540,0.86907304,2893.7,2892.9,0.1728]
[1645145912739,1.16907304,2893.7,2892.5,0.1728]
[1645145912940,0.30475304,2893.7,2892.6,1.47321914]
[1645145913143,0.00475304,2893.7,2892.6,1.47321914]
[1645145914295,0.86438,2893.5,2892.6,1.47321914]
[1645145914494,0.00475304,2893.4,2892.6,1.47321914]
[1645145914897,1.0464934,2892.9,2892.6,1.47321914]
[1645145916803,0.8697919,2893.0,2892.9,0.52496303]
[1645145917637,1.1697919,2893.0,2892.9,0.52496303]
[1645145918242,1.1697919,2893.0,2892.9,6.303e-05]
[1645145918243,0.3,2893.0,2892.9,6.303e-05]
[1645145918637,7.18731,2893.1,2892.9,6.303e-05]
[1645145918638,7.48731,2893.1,2892.9,6.303e-05]
[1645145922193,4.49251,2893.1,2892.9,6.303e-05]
[1645145924645,5.0,2893.0,2892.9,6.303e-05]
[1645145924846,27.46736971,2893.0,2892.9,6.303e-05]
[1645145925043,7.12736971,2893.0,2892.9,6.303e-05]
[1645145925243,0.86486,2892.8,2892.2,0.0029072]
[1645145925444,1.96653535,2892.4,2892.2,0.0029072]
[1645145925642,2.56653535,2892.4,2892.2,0.0029072]
[1645145925850,2.26653535,2892.4,2891.3,1.47375487]
[1645145926155,0.3,2892.4,2892.2,0.00290691]
[1645145926450,5.0,2892.4,2892.2,0.00290691]
[1645145926752,1.16483,2892.3,2892.2,0.00290691]
[1645145927149,0.86485,2891.9,2891.1,1.47380021]
[1645145927452,1.16485,2891.7,2891.1,1.47380021]
[1645145928311,1.12982263,2891.6,2891.1,1.47380021]
[1645145928513,1.12982263,2891.6,2891.3,0.00290731]
[1645145929512,1.12982263,2891.6,2891.1,1.47380021]
[1645145929713,1.12982263,2891.6,2891.3,0.00290729]
[1645145930214,1.12982263,2891.6,2891.3,1.4767075]
[1645145930415,1.12982263,2891.6,2891.3,0.00290729]
[1645145930615,1.12982263,2891.6,2891.2,1.47380836]
[1645145931017,0.86479,2891.9,2891.3,1.47671568]
[1645145931221,2.284,2892.0,2891.4,1.47380836]
[1645145931419,2.92493,2892.3,2891.3,0.00290732]
[1645145931618,0.86475,2892.1,2891.3,0.00290732]
[1645145931817,0.86475,2892.1,2891.2,0.86476]
[1645145932037,0.96406025,2891.9,2891.3,1.47374112]
[1645145932242,0.96406025,2891.9,2891.7,0.00290716]
[1645145932437,1.26406025,2891.9,2891.7,0.00290716]
[1645145933039,1.26406025,2891.9,2891.4,1.47374112]
[1645145933238,1.26406025,2891.9,2891.7,0.00290716]
[1645145934439,0.3,2891.9,2891.7,0.00290715]
[1645145934643,2.3137,2892.2,2891.7,0.00290715]
[1645145934842,3.2333,2892.8,2891.8,0.498]
[1645145935246,3.2333,2892.8,2891.9,1.47345558]
[1645145935441,3.2333,2892.8,2892.0,1.36244]
[1645145935641,3.2333,2892.8,2892.2,0.86438]
[1645145935642,4.26305969,2892.8,2892.2,0.86438]
[1645145935911,1.02975969,2892.8,2892.2,0.86438]
[1645145936100,1.02975969,2892.8,2892.1,0.00290693]
[1645145936304,1.02975969,2892.8,2892.1,1.97430609]
[1645145936500,1.02975969,2892.8,2892.1,0.50090693]
[1645145936700,1.02975969,2892.8,2892.1,1.36249]
[1645145936701,1.89424969,2892.8,2892.1,1.36249]
[1645145936900,1.89424969,2892.8,2892.2,0.0029069]
[1645145937299,1.32975969,2892.8,2892.2,0.0029069]
[1645145937901,1.32975969,2892.8,2892.1,0.498]
[1645145938099,1.32975969,2892.8,2892.2,0.00290692]
[1645145938300,0.86453,2892.7,2892.2,0.00290692]
[1645145938800,0.3,2892.6,2892.2,1.47630493]
[1645145939006,0.3,2892.6,2892.1,0.498]
[1645145939202,0.3,2892.6,2892.2,1.47340957]
[1645145939400,0.3,2892.6,2892.2,1.47631647]
[1645145939856,3.05883969,2892.8,2892.2,1.47631647]
[1645145940157,3.05883969,2892.8,2892.2,0.0029069]
[1645145940356,3.05883969,2892.8,2892.1,0.498]
[1645145940557,3.05883969,2892.8,2892.2,0.00290692]
[1645145941163,2.75883969,2892.8,2892.2,0.00290692]
[1645145941564,1.02975969,2892.8,2892.1,1.36251]
[1645145941761,1.02975969,2892.8,2892.2,0.00290692]
[1645145942167,1.32975969,2892.8,2892.2,0.00290692]
[1645145942762,1.32975969,2892.8,2891.4,0.6708]
[1645145942962,1.32975969,2892.8,2892.2,0.00290692]
[1645145943292,0.87768647,2892.3,2892.2,0.00290692]
[1645145943496,1.17768647,2892.3,2892.2,0.00290692]
[1645145943893,1.17768647,2892.3,2891.5,1.47360014]
[1645145944102,1.17768647,2892.3,2892.1,0.00290692]
[1645145944895,1.07768647,2892.3,2892.1,0.00290692]
[1645145945098,1.07768647,2892.3,2891.5,1.47360014]
[1645145945296,1.07768647,2892.3,2892.1,0.00290695]
[1645145946099,2.80725647,2892.3,2892.1,0.00290695]
[1645145946299,1.07768647,2892.3,2891.5,1.47360014]
[1645145946503,1.07768647,2892.3,2891.2,0.1728]
[1645145946504,1.07768647,2892.3,2892.1,0.00271122]
[1645145947341,1.94238647,2892.3,2892.1,0.00271122]
[1645145947540,1.94238647,2892.3,2891.4,2.33834993]
[1645145947541,2.55708647,2892.3,2891.4,2.33834993]
[1645145947741,0.8647,2892.3,2892.1,0.00271122]
[1645145947944,3.0593,2892.6,2892.1,0.00271122]
[1645145947945,2.8865,2892.6,2892.1,0.00271122]
[1645145948142,5.9454,2892.7,2892.1,0.00271122]
[1645145948143,2.7947,2892.7,2892.1,0.00271122]
[1645145948343,1.1444,2892.7,2892.1,0.50071122]
[1645145948545,3.1998,2893.2,2892.2,2.33807993]
[1645145948746,3.1998,2893.2,2892.3,1.97164993]
[1645145948747,1.156,2893.2,2892.3,1.97164993]
[1645145949045,1.156,2893.2,2892.4,1.4732219]
[1645145949247,2.2376709,2893.2,2892.5,0.498]
[1645145949445,1.0816709,2893.2,2892.6,1.47314936]
[1645145949743,1.0816709,2893.2,2892.7,0.86428]
[1645145950346,1.0816709,2893.2,2892.5,0.498]
[1645145950812,1.0816709,2893.2,2892.6,1.47313982]
[1645145951017,1.0816709,2893.2,2892.5,0.498]
[1645145951218,1.3816709,2893.2,2892.5,0.498]
[1645145951617,1.3816709,2893.2,2892.6,0.86435]
[1645145951819,1.0816709,2893.2,2892.6,1.72871]
[1645145952019,1.0816709,2893.2,2892.6,0.86435]
[1645145952819,2.2461009,2893.2,2892.5,0.498]
[1645145953019,2.2461009,2893.2,2892.2,0.30273009]
[1645145953219,2.2461009,2893.2,2892.3,1.47324886]
[1645145953421,0.87398119,2892.7,2892.4,1.47324886]
[1645145953724,0.86455,2892.8,2892.2,0.00272998]
[1645145953919,0.86455,2892.8,2892.2,1.47608122]
[1645145954120,0.86455,2892.8,2892.2,0.00272998]
[1645145954536,0.86455,2892.8,2892.2,1.47607137]
[1645145954738,1.16455,2892.8,2892.2,1.47334139]
[1645145954941,0.86457,2892.7,2892.2,1.47607042]
[1645145955139,0.3,2892.8,2892.2,0.00272903]
[1645145955339,1.77912,2893.1,2892.2,0.00272903]
[1645145955539,0.1728,2893.0,2892.2,0.00272903]
[1645145955942,1.03537496,2892.7,2892.1,1.4734082]
[1645145956141,1.03537496,2892.7,2892.2,0.00272875]
[1645145956946,1.03537496,2892.7,2892.2,1.73171875]
[1645145957143,2.19729,2893.2,2892.3,1.4734082]
[1645145957144,2.02449,2893.2,2892.3,1.4734082]
[1645145957344,0.3,2892.7,2892.3,1.4734082]
[1645145957543,0.86447,2893.1,2892.2,0.00272867]
[1645145957745,0.86446,2893.1,2892.2,1.47606353]
[1645145958148,1.16446,2893.1,2892.2,1.47606353]
[1645145958387,0.89821702,2893.0,2892.2,1.47333486]
[1645145958591,0.89821702,2893.0,2892.2,2.34055372]
[1645145958788,0.89821702,2893.0,2892.3,2.33780486]
[1645145958988,0.89821702,2893.0,2892.4,1.47333486]
[1645145959187,1.19821702,2893.0,2892.4,1.47333486]
[1645145959387,0.89821702,2893.0,2892.4,1.47333486]
[1645145959594,4.41975304,2893.6,2892.5,1.47333486]
[1645145959799,0.00475304,2893.6,2892.8,0.86428]
[1645145959991,0.00475304,2893.8,2892.9,1.97133486]
[1645145960196,0.00272735,2893.9,2893.0,1.47333486]
[1645145960389,0.30748039,2894.2,2893.2,5.0]
[1645145960588,0.30748039,2894.2,2893.4,1.19360098]
[1645145960791,3.01158979,2894.4,2893.4,1.19360098]
[1645145960792,3.00068207,2894.4,2893.5,0.6706]
[1645145960994,3.00068207,2894.4,2893.5,0.498]
[1645145961393,2.1059,2894.4,2893.5,1.498]
[1645145961594,2.1059,2894.4,2893.6,0.8639]
[1645145961798,8.4734,2894.5,2893.7,0.498]
[1645145962045,1.49253708,2894.4,2893.3,0.498]
[1645145962247,1.31993708,2894.3,2892.9,0.498]
[1645145962446,0.1726,2894.2,2892.9,0.498]
[1645145962844,1.09283488,2893.4,2893.0,2.33710706]
[1645145963047,1.09283488,2893.4,2892.9,2.22635]
[1645145963243,1.09283488,2893.4,2893.0,1.47289084]
[1645145963446,1.09283488,2893.4,2892.9,2.22635]
[1645145963645,0.0029305,2894.0,2892.9,2.22635]
[1645145964347,0.86425,2894.0,2892.9,2.22635]
[1645145964645,0.94048071,2893.6,2892.9,2.22635]
[1645145965247,1.24048071,2893.6,2892.9,0.498]
[1645145965447,1.24048071,2893.6,2892.8,0.00293175]
[1645145965448,0.86444,2893.5,2892.8,0.00293175]
[1645145965647,0.3,2893.4,2891.9,0.6708]
[1645145965906,0.86454,2893.3,2892.8,0.00291811]
[1645145966103,1.03734,2893.3,2892.8,0.00291811]
[1645145966703,1.11035006,2892.7,2892.0,1.47319427]
[1645145966903,0.8646,2893.2,2892.1,1.47319427]
[1645145967105,0.8646,2893.2,2892.8,0.00291799]
[1645145967304,3.93107,2893.4,2892.8,0.00291799]
[1645145967305,0.3,2893.1,2892.8,0.00291799]
[1645145967809,1.0148524,2892.9,2892.8,0.00291799]
[1645145968004,1.0148524,2892.9,2892.4,0.86435]
[1645145968214,1.0148524,2892.9,2892.8,0.00291793]
[1645145969004,1.0148524,2892.9,2892.2,1.47328305]
[1645145969404,1.0148524,2892.9,2892.7,0.00291885]
[1645145969648,1.72878,2893.4,2892.7,0.00291885]
[1645145969850,0.3,2893.3,2892.7,0.00291885]
[1645145970252,2.4103,2893.5,2892.4,1.47320929]
[1645145970855,0.93430782,2893.0,2892.4,1.47320929]
[1645145971053,0.93430782,2893.0,2892.1,1.498]
[1645145971252,0.93430782,2893.0,2892.2,1.47321861]
[1645145971655,0.93430782,2893.0,2892.2,2.47321861]
[1645145971955,0.93430782,2893.0,2892.3,1.47321861]
[1645145972156,0.93430782,2893.0,2892.4,1.47321861]
[1645145972355,0.93430782,2893.0,2892.1,1.0]
[1645145972559,0.86452,2892.9,2892.2,1.47320743]
[1645145972757,0.86452,2892.9,2892.3,1.47320743]
[1645145972953,0.86452,2892.9,2892.4,1.47632488]
[1645145973155,0.86452,2892.9,2892.4,0.00311745]
[1645145973593,0.93430782,2893.0,2892.4,0.00311745]
[1645145973993,0.93430782,2893.0,2892.3,1.47321251]
[1645145974193,0.93430782,2893.0,2892.6,0.00311738]
[1645145975194,0.93430782,2893.0,2892.3,1.47322749]
[1645145975394,0.93430782,2893.0,2892.7,0.00311733]
[1645145976200,2.4103,2893.5,2892.7,0.00311733]
[1645145976400,2.1103,2893.5,2892.6,0.34]
[1645145976600,2.1103,2893.5,2892.7,1.97414833]
[1645145976901,2.1103,2893.5,2892.8,4.97303102]
[1645145977143,2.1103,2893.5,2893.0,0.86409]
[1645145977342,1.208,2893.7,2893.2,0.8641]
[1645145977544,1.24062928,2893.8,2893.2,1.3621]
[1645145977545,0.00472928,2893.8,2893.2,1.3621]
[1645145978343,0.00472928,2893.8,2893.3,0.86411]
[1645145978745,0.00472928,2893.8,2893.2,0.498]
[1645145979948,0.00472928,2893.8,2893.2,1.36215]
[1645145980249,0.00472928,2893.8,2893.2,0.498]
[1645145981301,0.00472928,2893.8,2892.8,1.72823]
[1645145981302,0.00122731,2893.2,2892.8,2.22623]
[1645145981503,0.00122731,2893.2,2893.0,0.8642]
[1645145982803,0.00122731,2893.2,2893.0,1.72839]
[1645145984007,0.00122731,2893.2,2892.9,1.7283]
[1645145984204,0.00122731,2893.2,2892.8,0.00311741]
[1645145984851,0.00122731,2893.2,2892.6,0.04]
[1645145985148,0.8645,2893.0,2892.8,0.00311735]
[1645145985354,1.1645,2893.0,2892.8,0.00311735]
[1645145985953,1.1645,2893.0,2892.6,0.04]
[1645145986151,2.59347,2892.9,2892.6,0.04]
[1645145986354,2.59347,2892.9,2892.8,0.00191833]
[1645145986953,0.86449,2892.9,2892.8,0.00191833]
[1645145987255,1.95035757,2892.9,2892.6,0.04]
[1645145987455,2.81481757,2892.9,2892.6,0.04]
[1645145988691,2.81481757,2892.9,2892.6,0.04138112]
[1645145988692,1.08586757,2892.9,2892.6,0.04138112]
[1645145989590,1.08586757,2892.9,2892.6,0.04]
[1645145989791,1.08586757,2892.9,2892.6,0.04311735]
[1645145990190,0.3,2893.0,2892.6,0.04311735]
[1645145990690,2.5237,2893.1,2892.6,0.04311735]
[1645145990897,2.5237,2893.1,2892.6,0.04]
[1645145991096,2.5237,2893.1,2892.7,0.00311733]
[1645145991293,3.18143676,2893.1,2892.7,0.00311733]
[1645145991694,3.48143676,2893.1,2892.7,0.00311733]
[1645145992042,3.48143676,2893.1,2892.7,1.47316459]
[1645145992341,1.25773676,2893.1,2892.7,0.00311737]
[1645145992542,1.25773676,2893.1,2892.7,1.47627162]
[1645145993243,1.25773676,2893.1,2892.7,1.47315425]
[1645145993444,0.00122731,2893.2,2892.7,1.47627162]
[1645145993747,0.00122731,2893.2,2892.8,0.498]
[1645145993943,0.00122731,2893.2,2892.9,1.47315425]
[1645145994143,0.00122731,2893.2,2892.9,1.97115425]
[1645145994345,0.00122731,2893.2,2893.0,1.47315425]
[1645145995144,0.00122731,2893.2,2892.9,0.498]
[1645145995552,0.00122731,2893.2,2892.6,0.55135538]
[1645145995810,0.00122731,2893.2,2892.7,1.47314616]
[1645145996017,0.00122731,2893.2,2892.7,0.00311746]
[1645145996018,0.90833228,2893.0,2892.7,0.00311746]
[1645145996714,0.90833228,2893.0,2892.6,0.04]
[1645145997215,0.90833228,2893.0,2892.7,0.00311734]
[1645145997815,1.72904,2892.9,2892.7,0.00311734]
[1645145998015,0.90833228,2893.0,2892.6,0.04]
[1645145998415,0.90833228,2893.0,2892.7,0.00311734]
[1645145998614,1.20833228,2893.0,2892.7,0.00311734]
[1645145999017,1.72902,2892.9,2892.7,0.00311734]
[1645145999215,1.72902,2892.9,2892.6,0.04]
[1645145999416,2.59353,2892.9,2892.7,0.00311734]
[1645146000449,2.59353,2892.9,2892.6,0.04]
[1645146000648,0.86474,2892.7,2892.6,0.04]
[1645146000858,1.16474,2892.7,2892.6,0.04]
[1645146001057,8.72943,2892.6,2891.5,0.52713633]
[1645146001259,5.3,2892.5,2891.6,1.4735576]
[1645146001460,5.3,2892.5,2891.3,2.35722116]
[1645146001461,0.1728,2892.4,2891.3,2.35722116]
[1645146001657,5.86488,2892.3,2891.4,1.42367872]
[1645146001857,0.86498,2892.1,2891.4,1.42367872]
[1645146002055,0.86495,2892.0,2891.9,0.00311769]
[1645146002257,3.60306508,2892.0,2891.9,0.00311769]
[1645146002456,3.77586508,2892.0,2891.9,0.00311769]
[1645146002855,3.77586508,2892.0,2891.1,0.00388877]
[1645146003056,0.86495,2891.5,2891.1,0.00388877]
[1645146003300,0.86495,2891.7,2891.1,0.00388877]
[1645146003301,0.86495,2891.7,2891.5,0.70701338]
[1645146003500,0.86495,2891.7,2891.5,0.70806806]
[1645146004298,0.86495,2891.7,2891.5,0.7110784]
[1645146004500,0.86495,2891.6,2891.5,0.7110784]
[1645146004699,1.87311508,2892.0,2891.5,0.7110784]
[1645146005298,1.87311508,2892.0,2891.6,0.80688076]
[1645146005500,2.73795508,2892.0,2891.6,0.00301028]
[1645146005906,0.86486,2891.8,2891.6,0.00301028]
[1645146006110,0.3,2891.9,2891.6,0.00301028]
[1645146006304,1.00823508,2892.0,2891.6,0.00301028]
[1645146006511,1.00823508,2892.0,2891.5,0.70806806]
[1645146006706,1.00823508,2892.0,2891.6,0.00301028]
[1645146006907,1.00823508,2892.0,2891.8,0.80688076]
[1645146007143,1.00823508,2892.0,2891.6,0.00301028]
[1645146007543,1.00823508,2892.0,2891.5,0.70806806]
[1645146007946,1.00823508,2892.0,2891.7,0.00291301]
[1645146008344,1.00823508,2892.0,2891.8,0.80688076]
[1645146008546,1.00823508,2892.0,2891.7,0.00291301]
[1645146008750,1.00823508,2892.0,2891.5,0.70806806]
[1645146009144,1.00823508,2892.0,2891.8,1.36396616]
[1645146009345,1.00823508,2892.0,2891.8,1.36687913]
[1645146009945,1.00823508,2892.0,2891.9,0.80688076]
[1645146010146,1.30823508,2892.0,2891.9,0.80688076]
[1645146011610,7.0,2891.9,2891.8,1.36396616]
[1645146011811,7.0,2891.9,2891.8,1.36688567]
[1645146012211,7.86495,2891.9,2891.8,1.36688567]
[1645146012414,7.86495,2891.9,2891.8,1.36396616]
[1645146012814,7.0,2891.9,2891.8,1.36396616]
[1645146014650,7.0,2891.9,2891.7,1.955e-05]
[1645146014849,7.0,2891.9,2891.5,0.70806806]
[1645146014850,0.86504,2891.8,2891.5,0.70806806]
[1645146015048,1.86504,2891.8,2891.5,0.70806806]
[1645146015347,0.86504,2891.8,2891.7,0.00302787]
[1645146016052,0.86504,2891.8,2891.5,0.70806806]
[1645146016254,0.3,2891.7,2891.5,0.70806806]
[1645146016451,0.86508,2891.6,2891.5,0.70806806]
[1645146017053,0.3,2891.7,2891.5,0.70806806]
[1645146017250,7.0,2891.9,2891.5,0.70806806]
[1645146017251,8.16499,2891.9,2891.5,0.70806806]
[1645146017652,0.86496,2891.8,2891.5,0.70806806]
[1645146017852,7.3,2891.9,2891.5,0.70806806]
[1645146018298,1.0,2891.8,2891.5,0.70806806]
[1645146018500,5.0,2891.7,2891.2,0.00388877]
[1645146018702,0.86516,2891.6,2891.2,0.00388877]
[1645146018899,2.73031,2891.6,2891.2,0.00388877]
[1645146019100,2.16516,2891.6,2891.2,0.00388877]
[1645146019305,1.7446691,2891.5,2891.2,0.00388877]
[1645146019802,0.8795691,2891.5,2891.2,0.00388877]
[1645146023556,0.8795691,2891.5,2891.2,0.00682789]
[1645146024556,0.8795691,2891.5,2891.2,0.00388877]
[1645146024757,0.8795691,2891.5,2891.2,0.00682789]
[1645146024957,1.0,2892.0,2891.2,0.00682789]
[1645146025159,3.71627441,2892.1,2891.2,0.00682789]
[1645146025363,3.66627442,2892.1,2891.3,1.47355563]
[1645146025558,3.66627442,2892.1,2891.5,0.86474]
[1645146025800,0.46637442,2892.1,2891.6,2.33808304]
[1645146026005,0.46637442,2892.1,2891.7,1.97137304]
[1645146026204,0.46637442,2892.1,2891.7,0.498]
[1645146026603,0.46637442,2892.1,2891.7,1.36246]
[1645146026908,0.07772907,2892.3,2892.1,0.76799619]
[1645146028703,0.07772907,2892.3,2892.1,1.63254619]
[1645146029569,0.07772907,2892.3,2892.1,2.16254065]
[1645146029767,0.07772907,2892.3,2892.1,1.63254619]
[1645146030973,0.07772907,2892.3,2892.1,0.76799619]
[1645146032176,0.07772907,2892.3,2892.1,1.63253619]
[1645146032975,0.07772907,2892.3,2892.2,0.498]
[1645146034601,0.07772907,2892.3,2892.2,1.97115797]
[1645146034999,0.07772907,2892.4,2892.2,2.83555797]
[1645146035200,0.07772907,2892.4,2892.3,0.8644]
[1645146037050,0.07772907,2892.4,2892.3,2.33754755]
[1645146037252,0.07772907,2892.7,2892.4,4.86429]
[1645146037458,0.31091628,2892.9,2892.6,3.0]
[1645146037755,0.15545814,2893.0,2892.7,4.08619997]
[1645146037950,0.15545814,2893.0,2892.7,5.08619997]
[1645146038153,0.15545814,2893.0,2892.9,1.05589302]
[1645146038352,0.01581278,2893.2,2893.0,0.86414]
[1645146038950,0.00122731,2893.2,2893.0,0.86414]
[1645146039151,0.00414465,2893.2,2893.0,0.86414]
[1645146039553,0.00414465,2893.2,2893.0,1.7283]
[1645146039752,0.00414465,2893.2,2892.9,0.498]
[1645146040155,0.00122731,2893.2,2892.9,0.498]
[1645146040555,0.08186129,2893.2,2892.9,0.498]
[1645146041405,0.07895638,2893.2,2892.9,0.498]
[1645146041605,0.08186129,2893.2,2892.9,0.498]
[1645146042204,0.08186129,2893.2,2892.9,1.36227]
[1645146042205,0.00413222,2893.2,2892.9,1.36227]
[1645146042606,0.00122731,2893.2,2892.9,1.36227]
[1645146042810,0.00413222,2893.2,2892.9,1.36227]
[1645146043007,0.00413222,2893.2,2892.9,0.498]
[1645146043208,0.08186129,2893.2,2892.7,0.08819997]
[1645146043410,0.08186129,2893.2,2892.2,1.0373]
[1645146043709,0.07895638,2893.2,2892.2,0.1728]
[1645146043908,1.05921138,2892.7,2892.2,0.1728]
[1645146045745,4.06717456,2893.2,2892.2,0.95956093]
[1645146045953,3.20265456,2893.2,2892.2,0.86449]
[1645146046149,0.00122731,2893.2,2892.2,0.86449]
[1645146046548,1.18444931,2892.9,2892.2,2.59347]
[1645146046751,1.18444931,2892.9,2892.1,0.76799619]
[1645146046949,1.18444931,2892.9,2892.2,0.8645]
[1645146047549,0.00413282,2893.2,2892.2,0.8645]
[1645146047750,0.015755,2893.2,2892.2,0.8645]